fUSD/lending_fUSD_20260106
["ID","MTS","AMOUNT","RATE_DAILY","PERIOD"]
[400498253,1767671438727,-166.66,0.00017656,2]
[400498255,1767671438736,-1334.0,0.00017664,2]
[400498257,1767671438745,-1334.0,0.00017667,2]
[400498259,1767671438754,-888.0,0.00017687,2]
[400498261,1767671438766,-888.0,0.00017698,2]
[400498263,1767671438776,-4555.0777368,0.000177,2]
[400498265,1767671438785,-224.1287593,0.000178,2]
[400498267,1767671438794,-2500.0,0.000178,2]
[400498268,1767671438804,-6837.73289601,0.000178,2]
[400498270,1767671438813,-198.0,0.00017808,2]
[400498272,1767671438821,-165.70481798,0.00017811,2]
[400498274,1767671438831,-169.80207,0.0001782,2]
[400498276,1767671438840,-169.80208,0.0001782,2]
[400498278,1767671438849,-749.4662188,0.0001783,2]
[400498280,1767671438859,-169.80208,0.0001783,2]
[400498282,1767671438870,-200.0,0.00017856,2]
[400498284,1767671438879,-1334.0,0.00017859,2]
[400498286,1767671438888,-169.80207,0.0001786,2]
[400498288,1767671438897,-258.96,0.00017874,2]
[400498290,1767671438907,-169.80208,0.0001788,2]
[400498292,1767671438916,-293.56367081,0.00017899,2]
[400498294,1767671438925,-500.0,0.00017899,2]
[400498296,1767671438935,-255.19351802,0.00017899,2]
[400498298,1767671438944,-382.68740262,0.00017899,2]
[400498300,1767671438954,-256.50634122,0.00017899,2]
[400498302,1767671438963,-3704.88016378,0.00017899,2]
[400498304,1767671438973,-3704.88016372,0.00017899,2]
[400498305,1767671438982,-3704.88016372,0.00017899,2]
[400498306,1767671438991,-3704.88016372,0.00017899,2]
[400498307,1767671439000,-3704.88016372,0.00017899,2]
[400498308,1767671439009,-3704.88016372,0.000179,2]
[400498309,1767671439019,-3704.88016372,0.000179,2]
[400498310,1767671439028,-3704.88016372,0.000179,2]
[400498311,1767671439038,-3704.88016372,0.000179,2]
[400498312,1767671439047,-33569.5495,0.000179,2]
[400498313,1767671439056,-298.31721101,0.000179,2]
[400498314,1767671439065,-3704.88016372,0.000179,2]
[400498315,1767671439075,-771.62033402,0.000179,2]
[400498316,1767671439084,-183.25632108,0.000179,2]
[400498317,1767671439093,-175.11242639,0.000179,2]
[400498318,1767671439102,-336.594463,0.000179,2]
[400498319,1767671439111,-609.89470962,0.000179,2]
[400498320,1767671439120,-765.2744268,0.000179,2]
[400498321,1767671439129,-276.0,0.000179,2]
[400498322,1767671439138,-971.054,0.0001791,2]
[400498323,1767671439147,-169.80208,0.0001791,2]
[400498324,1767671439156,-1334.0,0.00017917,2]
[400498326,1767671439166,-210.91209289,0.0001793,2]
[400498327,1767671439175,-770.82279925,0.0001797,2]
[400498329,1767671439184,-504.3199228,0.00017973,2]
[400498331,1767671439193,-500.0,0.00017973,2]
[400498333,1767671439202,-150.0,0.00017973,2]
[400498335,1767671439211,-150.0,0.00017973,2]
[400498337,1767671439220,-152.38329665,0.00017982,2]
[400498339,1767671439229,-1002.56468536,0.00017982,2]
[400498341,1767671439238,-600.48752458,0.0001799,2]
[400498343,1767671439247,-600.48752458,0.0001799,2]
[400498345,1767671439255,-151.0,0.00017996,2]
[400498347,1767671439264,-155.08870728,0.00017997,2]
[400498349,1767671439273,-500.0,0.00017998,2]
[400498351,1767671439283,-500.0,0.00017998,2]
[400498353,1767671439292,-1916.56483899,0.00017999,5]
[400498355,1767671439301,-40643.7569041,0.00017999,2]
[400498357,1767671439309,-3048.3010166,0.00017999,2]
[400498359,1767671439319,-500.0,0.00017999,2]
[400498361,1767671439328,-500.0,0.00017999,2]
[400498363,1767671439337,-345.3210989,0.00017999,2]
[400498364,1767671439353,-137086.6958127,0.00017999,2]
[400498366,1767671439363,-8835.0240137,0.00017999,2]
[400498368,1767671439372,-2798.1558641,0.00017999,2]
[400498371,1767671439383,-3193.1960438,0.00017999,2]
[400498372,1767671439391,-3069.2965497,0.00017999,2]
[400498375,1767671439401,-32021.9020946,0.00017999,2]
[400498376,1767671439412,-1885.9217125,0.00017999,2]
[400498378,1767671439422,-500.0,0.00017999,2]
[400498380,1767671439432,-500.0,0.00017999,2]
[400498383,1767671439442,-500.0,0.00017999,2]
[400498384,1767671439451,-500.0,0.00017999,2]
[400498386,1767671439461,-159.63267947,0.00017999,2]
[400498389,1767671439471,-323.23631266,0.00017999,2]
[400498391,1767671439481,-1220.0,0.00018,2]
[400498393,1767671439490,-104172.16785884,0.00018,2]
[400498395,1767671439499,-183325.59613756,0.00018,2]
[400498396,1767671439508,-150.0,0.00018,7]
[400498398,1767671439517,-5800.0,0.00018,2]
[400498401,1767671439527,-5800.0,0.00018,2]
[400498403,1767671439536,-1244449.19518867,0.00018,2]
[400498405,1767671439548,-674291.8533245,0.00018,2]
[400498482,1767671440294,-416.11966426,0.00017811,2]
[400498484,1767671440306,-6421.61323167,0.00017811,2]
[400498486,1767671440315,-433.55433255,0.00017899,2]
[400498488,1767671440324,-38292.47437045,0.00018,2]
[400498839,1767671443807,-151.0,0.00017338,2]
[400498842,1767671443817,-151.0,0.00017338,2]
[400498844,1767671443827,-2171.07117054,0.00018,2]
[400498854,1767671443916,-716.99396338,0.00018,2]
[400499089,1767671446226,-4730.67228041,0.00017822,2]
[400499096,1767671446280,-2107.06061552,0.00017822,2]
[400499098,1767671446290,-892.93938448,0.00018,2]
[400499104,1767671446335,-4603.22127581,0.00018,2]
[400499143,1767671507684,189.92059497,0.0003287,120]
[400499147,1767671656076,70595.19166874,0.00032876,120]
[400499163,1767672533776,200000.0,0.0003,120]
[400499166,1767672631470,-150.0,0.00016694,2]
[400499167,1767672631480,-300.0,0.00016707,2]
[400499168,1767672631490,-260.03538196,0.00016707,2]
[400499169,1767672631501,-939.96461804,0.00016707,2]
[400499170,1767672631511,-259.0,0.00016707,2]
[400499171,1767672631520,-94.10627893,0.00016708,2]
[400499172,1767672631538,-994.88176241,0.00016708,2]
[400499173,1767672631550,-2830.76908413,0.00016708,2]
[400499174,1767672631562,-423.8827795,0.00016708,2]
[400499175,1767672631584,-832.22856812,0.00016708,2]
[400499176,1767672631603,-286.98,0.00016708,2]
[400499178,1767672631615,-513.49115737,0.00016708,2]
[400499179,1767672631628,-1600.0,0.00016708,2]
[400499180,1767672631649,-619.35433313,0.00016708,2]
[400499181,1767672631663,-3124.2367233,0.00016708,2]
[400499182,1767672631677,-808.38931311,0.00016708,2]
[400499183,1767672631689,-500.0,0.0001672,2]
[400499184,1767672631699,-195.0,0.0001673,2]
[400499185,1767672631709,-250.0,0.0001674,2]
[400499186,1767672631718,-150.0,0.0001676,2]
[400499187,1767672631730,-3043.97,0.00016799,2]
[400499188,1767672631739,-930.0,0.00016801,2]
[400499189,1767672631748,-1000.0,0.00016925,2]
[400499190,1767672631758,-930.0,0.00016936,2]
[400499191,1767672631768,-550.0,0.00016985,2]
[400499192,1767672631778,-459.73032493,0.00016986,2]
[400499194,1767672637366,-802.0,0.00016986,2]
[400499195,1767672637377,-875.29292091,0.00016986,2]
[400499196,1767672637423,-252.9257169,0.00016986,2]
[400499197,1767672637434,-9029.21082737,0.00016986,2]
[400499198,1767672637445,-4707.47864378,0.00016986,2]
[400499199,1767672637456,-7116.94800026,0.00016986,2]
[400499200,1767672637466,-2387.02207406,0.00016986,2]
[400499201,1767672637480,-2453.14347525,0.00016986,2]
[400499202,1767672637538,-23865.67801654,0.00016986,2]
[400499203,1767672637547,-250.0,0.00017,2]
[400499204,1767672637556,-1216.13,0.00017,2]
[400499205,1767672637565,-1327.19,0.00017,2]
[400499206,1767672637575,-930.0,0.00017044,2]
[400499207,1767672637584,-930.0,0.00017101,2]
[400499208,1767672637593,-930.0,0.00017258,2]
[400499209,1767672637602,-930.0,0.00017292,2]
[400499211,1767672637611,-296.0,0.000173,2]
[400499213,1767672637619,-151.0,0.00017311,2]
[400499215,1767672637629,-151.0,0.00017311,2]
[400499217,1767672637638,-151.0,0.00017315,2]
[400499219,1767672637647,-151.0,0.00017315,2]
[400499221,1767672637656,-1002.56468536,0.00017428,2]
[400499223,1767672637666,-500.0,0.00017573,2]
[400499225,1767672637675,-350.48753114,0.00017573,2]
[400499227,1767672637684,-500.0,0.00017573,2]
[400499229,1767672637696,-503.52117386,0.00017573,2]
[400499231,1767672637705,-500.0,0.00017573,2]
[400499233,1767672637714,-500.0,0.00017573,2]
[400499235,1767672637724,-5686.86765254,0.00017636,2]
[400499237,1767672637735,-152.31,0.00017637,2]
[400499239,1767672637745,-5425.18816308,0.0001764,2]
[400499241,1767672637755,-296.0,0.00017736,2]
[400499243,1767672637765,-500.0,0.00017781,2]
[400499245,1767672637774,-165.70481798,0.00017814,2]
[400499247,1767672637784,-250.86759,0.0001782,2]
[400499249,1767672637794,-250.8676,0.0001782,2]
[400499251,1767672637803,-749.4662188,0.0001783,2]
[400499253,1767672637812,-250.86759,0.0001783,2]
[400499255,1767672637822,-200.0,0.00017856,2]
[400499257,1767672637831,-250.8676,0.0001786,2]
[400499259,1767672637840,-250.8676,0.0001788,2]
[400499261,1767672637850,-24268.7248,0.00017899,2]
[400499263,1767672637859,-1000.0,0.00017899,2]
[400499265,1767672637868,-2500.0,0.00017899,2]
[400499267,1767672637878,-379.36004099,0.00017899,2]
[400499269,1767672637887,-3704.88016378,0.00017899,2]
[400499270,1767672637897,-298.31721101,0.000179,2]
[400499272,1767672637908,-336.594463,0.000179,2]
[400499274,1767672637917,-216.04197678,0.000179,2]
[400499276,1767672637927,-250.8676,0.0001791,2]
[400499278,1767672637938,-500.0,0.0001791,2]
[400499280,1767672637948,-971.054,0.00017931,2]
[400499282,1767672637959,-770.82279925,0.0001797,2]
[400499284,1767672637968,-504.3199228,0.00017973,2]
[400499286,1767672637979,-500.0,0.00017973,2]
[400499288,1767672637988,-150.0,0.00017973,2]
[400499290,1767672637998,-150.0,0.00017973,2]
[400499292,1767672638008,-152.38329665,0.00017982,2]
[400499294,1767672638019,-600.48752458,0.0001799,2]
[400499296,1767672638028,-5800.0,0.00017992,2]
[400499298,1767672638038,-151.0,0.00017997,2]
[400499300,1767672638049,-293.56367081,0.00017998,2]
[400499302,1767672638060,-255.19351802,0.00017998,2]
[400499304,1767672638070,-500.0,0.00017998,2]
[400499306,1767672638081,-256.50634122,0.00017998,2]
[400499308,1767672638091,-382.68740262,0.00017998,2]
[400499310,1767672638102,-350.16772483,0.00017998,2]
[400499312,1767672638112,-500.0,0.00017998,2]
[400499314,1767672638122,-500.0,0.00017998,2]
[400499316,1767672638132,-4594.5570322,0.00017999,2]
[400499318,1767672638142,-1916.56483899,0.00017999,5]
[400499320,1767672638156,-181279.7854581,0.00017999,2]
[400499322,1767672638166,-4144.7717392,0.00017999,2]
[400499324,1767672638176,-15937.998873,0.00017999,2]
[400499326,1767672638187,-1109.3196334,0.00017999,2]
[400499328,1767672638200,-8714.1420056,0.00017999,2]
[400499330,1767672638211,-276.0,0.00017999,2]
[400499332,1767672638222,-29391.7941006,0.00017999,2]
[400499334,1767672638234,-500.0,0.00017999,2]
[400499336,1767672638244,-500.0,0.00017999,2]
[400499338,1767672638254,-345.3210989,0.00017999,2]
[400499340,1767672638265,-2411.2302679,0.00017999,2]
[400499342,1767672638274,-500.0,0.00017999,2]
[400499344,1767672638285,-500.0,0.00017999,2]
[400499346,1767672638296,-500.0,0.00017999,2]
[400499348,1767672638306,-500.0,0.00017999,2]
[400499350,1767672638317,-159.63267947,0.00017999,2]
[400499352,1767672638328,-323.23631266,0.00017999,2]
[400499354,1767672638338,-1414.0,0.00018,2]
[400499356,1767672638348,-1552740.77132422,0.00018,2]
[400499359,1767672638362,-879592.45121531,0.00018,2]
[400499361,1767672638374,-4175.99059446,0.00018,2]
[400499363,1767672638387,-918.05660107,0.00018,2]
[400499443,1767672639392,-407.29064973,0.00018,2]
[400499444,1767672639404,-468.17,0.00018,2]
[400499445,1767672639551,-529.56039524,0.00018,2]
[400499446,1767672639563,-890.978,0.00018,2]
[400499447,1767672639575,-3756.97152716,0.00018,2]
[400499463,1767672643058,-1846.69777687,0.00018,2]
[400499464,1767672643113,-1233.02197146,0.00018,2]
[400499465,1767672643168,-3876.47437874,0.00018,2]
[400499466,1767672643180,-320.32457042,0.00018,2]
[400499467,1767672644015,-3279.13059994,0.00018,2]
[400499471,1767672645338,-3170.02509798,0.00018,2]
[400499472,1767672645349,-797.54942821,0.00018,2]
[400499473,1767672645444,-163548.87972644,0.00018,2]
[400499474,1767672645453,-250.3264428,0.00018,3]
[400499475,1767672645463,-150.0,0.00018,7]
[400499476,1767672645472,-1329.0,0.00018,2]
[400499477,1767672645482,-1405.0,0.00018,2]
[400499478,1767672645492,-3472.338,0.00018,2]
[400499479,1767672645502,-433.019,0.00018,2]
[400499480,1767672645511,-5800.0,0.00018,2]
[400499481,1767672645520,-250.8676,0.00018,2]
[400499482,1767672645529,-250.8676,0.00018,2]
[400499483,1767672645538,-250.8676,0.00018,2]
[400499484,1767672645547,-250.8676,0.00018,2]
[400499485,1767672645556,-200.497503,0.00018,2]
[400499486,1767672645565,-6549.0,0.00018,2]
[400499487,1767672645574,-2435.0,0.00018,2]
[400499488,1767672645583,-565.0,0.00018,2]
[400499489,1767672645592,-1008.0,0.00018022,2]
[400499490,1767672645602,-5115.0,0.00018027,2]
[400499491,1767672645611,-150.0,0.00018028,2]
[400499492,1767672645622,-166.67,0.0001803,2]
[400499493,1767672645637,-2307.0,0.00018053,2]
[400499494,1767672645646,-234.33453519,0.00018083,2]
[400499495,1767672645655,-494.0,0.00018089,2]
[400499496,1767672645665,-1775.52106049,0.000181,2]
[400499497,1767672645674,-892.84608354,0.00018101,2]
[400499498,1767672645684,-1000.0,0.00018102,2]
[400499499,1767672645698,-1000.0,0.00018121,2]
[400499500,1767672645708,-504.33962575,0.00018121,2]
[400499501,1767672645717,-507.68646828,0.00018121,2]
[400499502,1767672645727,-502.95823367,0.00018121,2]
[400499503,1767672645737,-888.0,0.00018175,2]
[400499504,1767672645746,-296.0,0.00018178,2]
[400499505,1767672645756,-210.91209289,0.00018184,2]
[400499507,1767672645767,-158.04,0.00018214,2]
[400499508,1767672645776,-155.08870728,0.00018214,2]
[400499509,1767672645785,-474.11269749,0.00018217,2]
[400499510,1767672645796,-420.0,0.00018253,2]
[400499511,1767672645805,-888.0,0.0001826,2]
[400499512,1767672645814,-276.0,0.00018273,2]
[400499515,1767672645823,-696.58029449,0.00018302,2]
[400499516,1767672645835,-5115.0,0.00018325,2]
[400499517,1767672645845,-1008.0,0.00018335,2]
[400499518,1767672645855,-1680.0,0.00018344,2]
[400499519,1767672645864,-88260.34,0.00018356,2]
[400499520,1767672645873,-250.0,0.00018392,2]
[400499521,1767672645883,-2555.42046544,0.00018392,2]
[400499522,1767672645892,-300.0,0.00018392,2]
[400499523,1767672645903,-200.52452869,0.00018392,2]
[400499524,1767672645913,-250.0,0.00018392,2]
[400499525,1767672645922,-1501.86231682,0.00018392,2]
[400499526,1767672645931,-241.76384591,0.00018392,2]
[400499527,1767672645940,-300.0,0.00018392,2]
[400499528,1767672645950,-195.0,0.00018392,2]
[400499529,1767672645959,-548.42,0.0001841,2]
[400499530,1767672645968,-5686.86765247,0.00018421,2]
[400499531,1767672645977,-296.0,0.00018424,2]
[400499532,1767672645987,-296.0,0.00018449,2]
[400499533,1767672645996,-1000.0,0.00018521,2]
[400499534,1767672646005,-276.0,0.00018547,2]
[400499535,1767672646014,-296.0,0.00018556,2]
[400499536,1767672646023,-152.0,0.00018581,3]
[400499537,1767672646031,-1353.0,0.000186,4]
[400499538,1767672646042,-1000.0,0.000186,2]
[400499539,1767672646051,-166.66,0.00018614,2]
[400499540,1767672646060,-3704.88016372,0.00018655,2]
[400499541,1767672646069,-284.15914169,0.00018668,2]
[400499542,1767672646079,-978.0,0.000187,2]
[400499543,1767672646087,-306.0,0.000187,2]
[400499544,1767672646097,-851.0,0.000187,2]
[400499545,1767672646106,-300.0,0.000187,2]
[400499546,1767672646115,-258.96,0.00018726,2]
[400499547,1767672646124,-296.0,0.00018727,2]
[400499548,1767672646133,-1000.0,0.00018734,2]
[400499549,1767672646143,-1008.0,0.00018785,2]
[400499550,1767672646155,-151.51,0.000188,2]
[400499551,1767672646165,-151.51,0.000188,2]
[400499552,1767672646174,-151.51,0.000188,2]
[400499553,1767672646183,-151.51,0.000188,2]
[400499554,1767672646193,-151.51,0.000188,2]
[400499555,1767672646202,-151.51,0.000188,2]
[400499556,1767672646212,-151.51,0.000188,2]
[400499557,1767672646221,-151.51,0.000188,2]
[400499558,1767672646230,-151.51,0.000188,2]
[400499559,1767672646239,-151.51,0.000188,2]
[400499560,1767672646249,-151.51,0.000188,2]
[400499561,1767672646258,-151.51,0.000188,2]
[400499562,1767672646267,-151.51,0.000188,2]
[400499563,1767672646276,-151.51,0.000188,2]
[400499564,1767672646286,-151.51,0.000188,2]
[400499565,1767672646295,-151.51,0.000188,2]
[400499566,1767672646304,-151.51,0.000188,2]
[400499567,1767672646314,-151.51,0.000188,2]
[400499568,1767672646323,-151.51,0.000188,2]
[400499569,1767672646332,-151.51,0.000188,2]
[400499570,1767672646341,-151.51,0.000188,2]
[400499571,1767672646350,-151.51,0.000188,2]
[400499572,1767672646360,-151.51,0.000188,2]
[400499573,1767672646369,-151.51,0.000188,2]
[400499574,1767672646379,-151.51,0.000188,2]
[400499575,1767672646388,-151.51,0.000188,2]
[400499576,1767672646398,-151.51,0.000188,2]
[400499577,1767672646407,-151.51,0.000188,2]
[400499578,1767672646424,-151.51,0.000188,2]
[400499579,1767672646437,-151.51,0.000188,2]
[400499580,1767672646447,-151.51,0.000188,2]
[400499581,1767672646456,-276.0,0.00018821,2]
[400499582,1767672646466,-888.0,0.00018848,2]
[400499583,1767672646475,-888.0,0.00018891,2]
[400499584,1767672646484,-296.0,0.00018896,2]
[400499585,1767672646494,-1008.0,0.00018935,2]
[400499586,1767672646504,-166.67,0.0001897,2]
[400499587,1767672646513,-500.92,0.0001898,2]
[400499588,1767672646523,-151.51,0.0001899,2]
[400499589,1767672646532,-151.51,0.0001899,2]
[400499590,1767672646541,-315.84,0.00018992,2]
[400499591,1767672646551,-37345.71882347,0.00019,2]
[400499592,1767672646559,-5158.03015767,0.00019,2]
[400499593,1767672646569,-150.0,0.00019,2]
[400499594,1767672646578,-562.07393423,0.00019,2]
[400499595,1767672646587,-1400.4493773,0.00019,2]
[400499596,1767672646596,-87366.51828272,0.00019,2]
[400499597,1767672646610,-2023.53659554,0.00019,2]
[400499607,1767672804846,2171.97,0.00032877,120]
[400499609,1767672858297,522.95,0.00013699,2]
[400499610,1767672860863,222.0,0.00032876,120]
[400499618,1767673305138,4862.93,0.00016438,2]
[400499620,1767673383864,166.66,0.00016237,2]
[400499626,1767673613394,5513.49266887,0.000162,5]
[400499635,1767673742751,982.69,0.00016485,2]
[400499637,1767673793611,157.92,0.00024805,120]
[400499653,1767673831474,-157.92,0.00016536,2]
[400499654,1767673831484,-250.0,0.00016569,2]
[400499655,1767673831494,-477.35790424,0.00016569,2]
[400499656,1767673831536,-2022.64209576,0.00016569,2]
[400499657,1767673831547,-166.66,0.00016579,2]
[400499658,1767673831556,-250.0,0.00016581,2]
[400499659,1767673831566,-1067.80442726,0.00016668,5]
[400499660,1767673831578,-848.76041173,0.00016668,5]
[400499661,1767673831591,-1078.91753198,0.00016668,2]
[400499662,1767673831613,-121.08246802,0.00016668,2]
[400499663,1767673831628,-300.0,0.00016668,2]
[400499664,1767673831648,-577.91753198,0.00016668,2]
[400499665,1767673831666,-424.64715338,0.00016668,2]
[400499666,1767673831676,-344.9207732,0.00016669,2]
[400499667,1767673831687,-48.84986674,0.00016669,2]
[400499668,1767673831697,-500.0,0.00016669,2]
[400499669,1767673831707,-500.0,0.00016669,2]
[400499670,1767673831716,-33.15013326,0.00016721,2]
[400499688,1767673837535,-312618.59183053,0.00016568,2]
[400499689,1767673837546,-381.17507781,0.00016568,2]
[400499694,1767673837648,-1649.30262941,0.00016568,2]
[400499695,1767673837660,-1788.46299937,0.00016568,2]
[400499696,1767673837710,-563.94852852,0.00016568,2]
[400499697,1767673837765,-348.01441186,0.00016568,2]
[400499698,1767673837777,-108690.2135225,0.00016568,2]
[400499699,1767673837786,-4516.34398877,0.00016721,2]
[400499700,1767673837796,-158.04,0.00016732,2]
[400499701,1767673837805,-166.66,0.00016921,2]
[400499702,1767673837815,-151.0,0.00017137,2]
[400499703,1767673837824,-151.0,0.00017142,2]
[400499705,1767673837834,-155.38,0.00017242,2]
[400499707,1767673837843,-166.66,0.00017263,2]
[400499710,1767673837853,-151.0,0.00017283,2]
[400499711,1767673837863,-151.0,0.00017316,2]
[400499713,1767673837872,-228.22,0.00017339,2]
[400499715,1767673837882,-151.0,0.00017346,2]
[400499717,1767673837891,-151.0,0.00017347,2]
[400499719,1767673837900,-255.0,0.00017529,2]
[400499721,1767673837909,-500.0,0.0001753,2]
[400499723,1767673837918,-500.0,0.0001753,2]
[400499725,1767673837928,-359.0396472,0.0001753,2]
[400499727,1767673837937,-500.0,0.0001753,2]
[400499729,1767673837949,-182968.30173427,0.00017531,2]
[400499731,1767673837959,-503.52117386,0.00017573,2]
[400499733,1767673837969,-500.0,0.00017573,2]
[400499734,1767673837978,-500.0,0.00017573,2]
[400499735,1767673837987,-166.66,0.00017604,2]
[400499736,1767673837996,-168.0,0.00017722,2]
[400499737,1767673838006,-168.0,0.00017736,2]
[400499738,1767673838016,-1000.0,0.00017799,2]
[400499739,1767673838026,-572.48419667,0.000178,2]
[400499740,1767673838039,-165.70481798,0.00017853,2]
[400499741,1767673838049,-256.50634122,0.00017898,2]
[400499742,1767673838058,-33569.5495,0.00017899,2]
[400499743,1767673838068,-183.25632108,0.000179,2]
[400499744,1767673838079,-3334.39214739,0.000179,2]
[400499745,1767673838088,-336.594463,0.000179,2]
[400499746,1767673838099,-609.89470962,0.000179,2]
[400499747,1767673838111,-198.87814068,0.00017905,2]
[400499748,1767673838120,-765.2744268,0.00017905,2]
[400499749,1767673838130,-166.66,0.00017946,2]
[400499750,1767673838140,-504.3199228,0.00017973,2]
[400499751,1767673838151,-500.0,0.00017973,2]
[400499752,1767673838162,-150.0,0.00017973,2]
[400499753,1767673838172,-776.843,0.00017975,2]
[400499754,1767673838182,-600.48752458,0.0001799,2]
[400499755,1767673838192,-600.48752458,0.0001799,2]
[400499756,1767673838202,-151.0,0.00017997,2]
[400499757,1767673838212,-323.23631266,0.00017999,2]
[400499758,1767673838222,-300.0,0.00017999,2]
[400499759,1767673838232,-150.0,0.00018,7]
[400499760,1767673838242,-1556275.93464422,0.00018,2]
[400499761,1767673838286,-1091013.3002678,0.00018,2]
[400499762,1767673838299,-11958.46803544,0.00018,2]
[400499763,1767673838310,-10869.68645824,0.00018,2]
[400499764,1767673839754,-394.07870975,0.00018,2]
[400499765,1767673839813,-374.10410906,0.00018,2]
[400499766,1767673839824,-497.12974831,0.00018,2]
[400499767,1767673839837,-530.71146879,0.00018,2]
[400499768,1767673839848,-840.8243908,0.00018,2]
[400499769,1767673839859,-1662.18612278,0.00018,2]
[400499770,1767673839870,-4264.09911204,0.00018,2]
[400499802,1767673843356,-83974.45740982,0.00018,2]
[400499840,1767673845535,-235672.80162351,0.00018,2]
[400499841,1767673845594,-4190.45635677,0.00018,2]
[400499842,1767673845605,-4004.1,0.00018,2]
[400499843,1767673845616,-9384.4,0.00018,2]
[400499987,1767673868120,3772.426536,7.945e-05,2]
[400499992,1767674149473,311.93421854,0.00032876,120]
[400499994,1767674167813,299.611847,7.945e-05,2]
[400499997,1767674338846,156.41,8.436e-05,2]
[400499998,1767674339344,156.41,9.203e-05,2]
[400499999,1767674339382,156.41,9.97e-05,2]
[400500000,1767674339543,156.41,0.00010737,2]
[400500001,1767674339680,156.41,0.00011504,2]
[400500002,1767674340080,156.41,0.0001227,2]
[400500003,1767674340308,156.41,0.00013037,2]
[400500004,1767674340525,156.41,0.00013804,2]
[400500005,1767674340952,156.41,0.00014571,2]
[400500006,1767674341149,156.41,0.00015338,2]
[400500007,1767674341345,156.41,0.00016105,2]
[400500011,1767674509265,500.1,0.00032876,120]
[400500019,1767674845123,-289.0,0.00016568,2]
[400500020,1767674845148,-250.0,0.00016568,2]
[400500021,1767674845173,-499.8166701,0.00016568,2]
[400500029,1767675031670,-250.0,0.00016692,2]
[400500030,1767675031679,-4518.95087844,0.000167,2]
[400500031,1767675031694,-36.12685836,0.000167,2]
[400500032,1767675031703,-361.46786234,0.00016815,3]
[400500033,1767675031713,-637.53213766,0.00016815,3]
[400500034,1767675031722,-156.41,0.00016872,2]
[400500035,1767675031731,-250.0,0.00017,2]
[400500036,1767675031741,-200.0,0.00017007,2]
[400500037,1767675031750,-187.0,0.00017305,2]
[400500038,1767675031759,-154.98385421,0.00017331,2]
[400500039,1767675031769,-590.29201348,0.00017331,2]
[400500040,1767675031780,-3743.18713231,0.00017331,2]
[400500041,1767675031790,-187.0,0.00017361,2]
[400500042,1767675031799,-187.0,0.00017382,2]
[400500043,1767675031808,-1200.0,0.00017428,2]
[400500044,1767675031817,-300.0,0.00017429,2]
[400500045,1767675031826,-1216.13,0.0001743,2]
[400500046,1767675031835,-1000.0,0.00017431,2]
[400500047,1767675031844,-24268.7248,0.00017431,2]
[400500048,1767675031853,-166.66,0.00017435,2]
[400500049,1767675031862,-151.0,0.00017439,2]
[400500050,1767675031872,-151.0,0.00017442,2]
[400500052,1767675031881,-187.0,0.00017481,2]
[400500053,1767675031889,-500.0,0.00017573,2]
[400500055,1767675031898,-350.48753114,0.00017573,2]
[400500057,1767675031907,-500.0,0.00017573,2]
[400500058,1767675031916,-503.52117386,0.00017573,2]
[400500059,1767675031925,-500.0,0.00017573,2]
[400500060,1767675031935,-500.0,0.00017573,2]
[400500062,1767675031944,-258.71332768,0.00017779,2]
[400500064,1767675031953,-749.4662188,0.0001783,2]